fUSD/lending_fUSD_20251227
["ID","MTS","AMOUNT","RATE_DAILY","PERIOD"]
[399877229,1766798718709,500.0,0.00030136,120]
[399877231,1766798718955,155.8355931,0.00030136,120]
[399877242,1766798726484,190.46709859,0.00030136,120]
[399877243,1766798728397,514.36570382,0.00030136,120]
[399877246,1766798733047,311.39931901,0.00030136,120]
[399877249,1766798742552,500.0,0.00030136,120]
[399877250,1766798742773,500.0,0.00030136,120]
[399877251,1766798743120,500.0,0.00030136,120]
[399877252,1766798743355,500.0,0.00030136,120]
[399877254,1766798743596,500.0,0.00030136,120]
[399877255,1766798743859,300.0,0.00030136,120]
[399877261,1766798758565,404.66015837,0.00030136,120]
[399877264,1766798763409,1010.8888141,0.00030136,120]
[399877265,1766798767655,442.98222089,0.00030136,120]
[399877269,1766798774467,500.0,0.00030136,120]
[399877270,1766798774698,500.0,0.00030136,120]
[399877271,1766798774945,500.0,0.00030136,120]
[399877272,1766798775246,500.0,0.00030136,120]
[399877273,1766798775489,500.0,0.00030136,120]
[399877274,1766798775722,300.0,0.00030136,120]
[399877280,1766798782978,500.0,0.00030136,120]
[399877281,1766798783226,500.0,0.00030136,120]
[399877282,1766798783469,500.0,0.00030136,120]
[399877283,1766798783743,500.0,0.00030136,120]
[399877284,1766798783981,500.0,0.00030136,120]
[399877285,1766798784214,318.51575968,0.00030136,120]
[399877286,1766798784252,500.0,0.00030136,120]
[399877287,1766798784456,500.0,0.00030136,120]
[399877288,1766798784680,500.0,0.00030136,120]
[399877289,1766798784716,500.0,0.00030136,120]
[399877290,1766798784939,500.0,0.00030136,120]
[399877291,1766798784977,500.0,0.00030136,120]
[399877292,1766798785172,400.0,0.00030136,120]
[399877293,1766798785211,500.0,0.00030136,120]
[399877294,1766798785468,161.1,0.00030136,120]
[399877295,1766798788299,500.0,0.00030136,120]
[399877296,1766798788344,500.0,0.00030136,120]
[399877297,1766798788573,500.0,0.00030136,120]
[399877298,1766798788805,165.6,0.00030136,120]
[399877300,1766798794968,500.0,0.00030136,120]
[399877301,1766798795207,500.0,0.00030136,120]
[399877302,1766798795447,500.0,0.00030136,120]
[399877303,1766798795681,500.0,0.00030136,120]
[399877304,1766798795916,500.0,0.00030136,120]
[399877305,1766798796154,500.0,0.00030136,120]
[399877306,1766798796851,500.0,0.00030136,120]
[399877307,1766798796889,500.0,0.00030136,120]
[399877308,1766798796934,500.0,0.00030136,120]
[399877309,1766798797115,500.0,0.00030136,120]
[399877310,1766798797429,500.0,0.00030136,120]
[399877311,1766798798037,500.0,0.00030136,120]
[399877312,1766798798073,339.29691454,0.00030136,120]
[399877315,1766798799817,668.86,0.00030136,120]
[399877316,1766798800073,668.86,0.00030136,120]
[399877317,1766798800366,668.86,0.00030136,120]
[399877318,1766798800616,668.86,0.00030136,120]
[399877319,1766798800782,500.0,0.00030136,120]
[399877321,1766798800856,668.86,0.00030136,120]
[399877322,1766798800997,500.0,0.00030136,120]
[399877323,1766798801084,668.86,0.00030136,120]
[399877325,1766798801326,668.86,0.00030136,120]
[399877326,1766798801561,668.86,0.00030136,120]
[399877327,1766798801799,668.86,0.00030136,120]
[399877328,1766798802037,668.86,0.00030136,120]
[399877329,1766798802068,206.48649483,0.00030136,120]
[399877330,1766798802293,668.86,0.00030136,120]
[399877331,1766798802528,668.86,0.00030136,120]
[399877332,1766798802770,668.86,0.00030136,120]
[399877333,1766798803002,668.86,0.00030136,120]
[399877334,1766798803245,668.86,0.00030136,120]
[399877335,1766798803470,500.0,0.00030136,120]
[399877336,1766798803503,668.86,0.00030136,120]
[399877337,1766798803707,319.08,0.00030136,120]
[399877338,1766798803739,668.86,0.00030136,120]
[399877339,1766798803970,668.86,0.00030136,120]
[399877341,1766798804391,668.86,0.00030136,120]
[399877342,1766798804464,668.86,0.00030136,120]
[399877343,1766798804704,668.86,0.00030136,120]
[399877344,1766798804942,668.86,0.00030136,120]
[399877345,1766798805185,668.86,0.00030136,120]
[399877346,1766798805443,669.04722411,0.00030136,120]
[399877373,1766798819008,342.51958715,0.00030136,120]
[399877375,1766798820973,500.0,0.00030136,120]
[399877376,1766798821226,500.0,0.00030136,120]
[399877377,1766798821449,500.0,0.00030136,120]
[399877378,1766798822012,500.0,0.00030136,120]
[399877379,1766798822243,399.77838054,0.00030136,120]
[399877381,1766798823682,500.0,0.00030136,120]
[399877382,1766798823914,500.0,0.00030136,120]
[399877383,1766798824592,500.0,0.00030136,120]
[399877384,1766798824854,500.0,0.00030136,120]
[399877385,1766798825177,411.15524779,0.00030136,120]
[399877387,1766798830244,500.0,0.00030136,120]
[399877388,1766798830500,500.0,0.00030136,120]
[399877389,1766798830692,500.0,0.00030136,120]
[399877391,1766798831022,500.0,0.00030136,120]
[399877392,1766798831180,416.50325123,0.00030136,120]
[399877393,1766798835906,500.0,0.00030136,120]
[399877394,1766798836161,500.0,0.00030136,120]
[399877395,1766798836409,500.0,0.00030136,120]
[399877396,1766798836642,500.0,0.00030136,120]
[399877397,1766798836873,500.0,0.00030136,120]
[399877398,1766798837139,500.0,0.00030136,120]
[399877399,1766798837383,500.0,0.00030136,120]
[399877400,1766798837626,500.0,0.00030136,120]
[399877401,1766798837841,510.025577,0.00030136,120]
[399877402,1766798838058,500.0,0.00030136,120]
[399877403,1766798838280,500.0,0.00030136,120]
[399877404,1766798838508,500.0,0.00030136,120]
[399877405,1766798838758,500.0,0.00030136,120]
[399877406,1766798839002,500.0,0.00030136,120]
[399877407,1766798839555,500.0,0.00030136,120]
[399877408,1766798839779,256.55517321,0.00030136,120]
[399877410,1766798843796,500.0,0.00030136,120]
[399877411,1766798844203,500.0,0.00030136,120]
[399877412,1766798845267,500.0,0.00030136,120]
[399877413,1766798845327,181.78777564,0.00030136,120]
[399877414,1766798845510,500.0,0.00030136,120]
[399877415,1766798845737,500.0,0.00030136,120]
[399877416,1766798845997,500.0,0.00030136,120]
[399877417,1766798846228,500.0,0.00030136,120]
[399877418,1766798846818,500.0,0.00030136,120]
[399877419,1766798847206,500.0,0.00030136,120]
[399877420,1766798847458,500.0,0.00030136,120]
[399877421,1766798848250,503.1655015,0.00030136,120]
[399877422,1766798848538,500.0,0.00030136,120]
[399877423,1766798848768,500.0,0.00030136,120]
[399877424,1766798849031,500.0,0.00030136,120]
[399877425,1766798849281,271.39981834,0.00030136,120]
[399877426,1766798850050,500.0,0.00030136,120]
[399877427,1766798850284,500.0,0.00030136,120]
[399877428,1766798850519,500.0,0.00030136,120]
[399877429,1766798850689,196.50294296,0.00030136,120]
[399877430,1766798850761,516.99780811,0.00030136,120]
[399877431,1766798851200,500.0,0.00030136,120]
[399877434,1766798851662,500.0,0.00030136,120]
[399877436,1766798852115,500.0,0.00030136,120]
[399877437,1766798852360,500.0,0.00030136,120]
[399877438,1766798852621,500.0,0.00030136,120]
[399877439,1766798852898,500.0,0.00030136,120]
[399877443,1766798853145,516.67638513,0.00030136,120]
[399877445,1766798854428,500.0,0.00030136,120]
[399877446,1766798854682,500.0,0.00030136,120]
[399877447,1766798854916,500.0,0.00030136,120]
[399877448,1766798855151,500.0,0.00030136,120]
[399877449,1766798855738,500.0,0.00030136,120]
[399877450,1766798855976,300.0,0.00030136,120]
[399877452,1766798857787,500.0,0.00030136,120]
[399877453,1766798858023,500.0,0.00030136,120]
[399877454,1766798858272,500.0,0.00030136,120]
[399877455,1766798858513,500.0,0.00030136,120]
[399877456,1766798858754,500.0,0.00030136,120]
[399877457,1766798858987,506.51822051,0.00030136,120]
[399877458,1766798872477,500.0,0.00030136,120]
[399877459,1766798872712,500.0,0.00030136,120]
[399877460,1766798872943,500.0,0.00030136,120]
[399877461,1766798873197,500.0,0.00030136,120]
[399877462,1766798873461,500.0,0.00030136,120]
[399877463,1766798873706,333.7118003,0.00030136,120]
[399877464,1766798874741,210.23121696,0.00030136,120]
[399877465,1766798875579,500.0,0.00030136,120]
[399877466,1766798875818,500.0,0.00030136,120]
[399877467,1766798876061,500.0,0.00030136,120]
[399877468,1766798876299,500.0,0.00030136,120]
[399877469,1766798876574,500.0,0.00030136,120]
[399877470,1766798876815,300.0,0.00030136,120]
[399877483,1766798898140,545.60254175,0.00030136,120]
[399877484,1766798901689,500.0,0.00030136,120]
[399877485,1766798901928,500.0,0.00030136,120]
[399877486,1766798902165,500.0,0.00030136,120]
[399877487,1766798902421,500.0,0.00030136,120]
[399877488,1766798902662,500.0,0.00030136,120]
[399877489,1766798902982,186.1797839,0.00030136,120]
[399877496,1766798905369,500.0,0.00030136,120]
[399877498,1766798905602,500.0,0.00030136,120]
[399877500,1766798906002,500.0,0.00030136,120]
[399877501,1766798906373,500.0,0.00030136,120]
[399877502,1766798906598,500.0,0.00030136,120]
[399877503,1766798906826,500.0,0.00030136,120]
[399877504,1766798907051,500.0,0.00030136,120]
[399877505,1766798907298,500.0,0.00030136,120]
[399877506,1766798907546,500.0,0.00030136,120]
[399877507,1766798907593,500.0,0.00030136,120]
[399877508,1766798907774,543.55632176,0.00030136,120]
[399877509,1766798907816,500.0,0.00030136,120]
[399877510,1766798908047,500.0,0.00030136,120]
[399877511,1766798908280,500.0,0.00030136,120]
[399877512,1766798908509,500.0,0.00030136,120]
[399877513,1766798908754,500.0,0.00030136,120]
[399877514,1766798909102,500.0,0.00030136,120]
[399877515,1766798909331,500.0,0.00030136,120]
[399877516,1766798909578,500.0,0.00030136,120]
[399877517,1766798909688,500.0,0.00030136,120]
[399877518,1766798909931,500.0,0.00030136,120]
[399877519,1766798910152,160.41,0.00030136,120]
[399877520,1766798910183,500.0,0.00030136,120]
[399877521,1766798910438,500.0,0.00030136,120]
[399877523,1766798910700,500.0,0.00030136,120]
[399877524,1766798910939,300.0,0.00030136,120]
[399877525,1766798919566,500.0,0.00030136,120]
[399877526,1766798919802,500.0,0.00030136,120]
[399877527,1766798920035,500.0,0.00030136,120]
[399877528,1766798920315,503.37198716,0.00030136,120]
[399877529,1766798923089,500.0,0.00030136,120]
[399877530,1766798923341,156.13413913,0.00030136,120]
[399877531,1766798923573,500.0,0.00030136,120]
[399877532,1766798923807,500.0,0.00030136,120]
[399877533,1766798924278,500.0,0.00030136,120]
[399877534,1766798924316,500.0,0.00030136,120]
[399877535,1766798924545,500.0,0.00030136,120]
[399877536,1766798924797,314.07360556,0.00030136,120]
[399877537,1766798927001,500.0,0.00030136,120]
[399877538,1766798927386,500.0,0.00030136,120]
[399877539,1766798927629,500.0,0.00030136,120]
[399877540,1766798927864,500.0,0.00030136,120]
[399877541,1766798928106,500.0,0.00030136,120]
[399877542,1766798929079,300.0,0.00030136,120]
[399877543,1766798936124,500.0,0.00030136,120]
[399877544,1766798936348,500.0,0.00030136,120]
[399877545,1766798938126,820.48,0.00030136,120]
[399877546,1766798938386,820.48,0.00030136,120]
[399877547,1766798938631,820.48,0.00030136,120]
[399877548,1766798938888,820.48,0.00030136,120]
[399877549,1766798939113,820.48,0.00030136,120]
[399877550,1766798939336,820.48,0.00030136,120]
[399877551,1766798939585,820.48,0.00030136,120]
[399877552,1766798940043,820.48,0.00030136,120]
[399877553,1766798940078,820.48,0.00030136,120]
[399877554,1766798940272,820.48,0.00030136,120]
[399877555,1766798940477,820.48,0.00030136,120]
[399877556,1766798940732,820.48,0.00030136,120]
[399877557,1766798940958,820.48,0.00030136,120]
[399877558,1766798941193,820.48,0.00030136,120]
[399877559,1766798941515,820.48,0.00030136,120]
[399877560,1766798941761,820.48,0.00030136,120]
[399877561,1766798942005,820.48,0.00030136,120]
[399877562,1766798942246,820.48,0.00030136,120]
[399877563,1766798942474,820.48,0.00030136,120]
[399877564,1766798942709,820.48,0.00030136,120]
[399877565,1766798942954,820.48,0.00030136,120]
[399877566,1766798943276,820.48,0.00030136,120]
[399877567,1766798943531,820.48,0.00030136,120]
[399877568,1766798943778,820.58991981,0.00030136,120]
[399877569,1766798949927,500.0,0.00030136,120]
[399877570,1766798950201,500.0,0.00030136,120]
[399877571,1766798950443,647.30123916,0.00030136,120]
[399877576,1766798984864,500.0,0.00030136,120]
[399877577,1766798985107,500.0,0.00030136,120]
[399877578,1766798985711,500.0,0.00030136,120]
[399877579,1766798985982,500.0,0.00030136,120]
[399877580,1766798986245,500.0,0.00030136,120]
[399877581,1766798986642,500.0,0.00030136,120]
[399877582,1766798986912,500.0,0.00030136,120]
[399877583,1766799002988,500.0,0.00030136,120]
[399877584,1766799003255,500.0,0.00030136,120]
[399877585,1766799003500,500.0,0.00030136,120]
[399877586,1766799003758,500.0,0.00030136,120]
[399877587,1766799003996,500.0,0.00030136,120]
[399877588,1766799004246,300.0,0.00030136,120]
[399877589,1766799006463,500.0,0.00030136,120]
[399877590,1766799006544,166.21358469,0.00030136,120]
[399877591,1766799006704,500.0,0.00030136,120]
[399877592,1766799006952,500.0,0.00030136,120]
[399877593,1766799007543,500.0,0.00030136,120]
[399877594,1766799007815,500.0,0.00030136,120]
[399877595,1766799008068,311.56848627,0.00030136,120]
[399877597,1766799010046,258.53176086,0.00030136,120]
[399877598,1766799011845,500.0,0.00030136,120]
[399877599,1766799012078,500.0,0.00030136,120]
[399877600,1766799012312,500.0,0.00030136,120]
[399877601,1766799013029,500.0,0.00030136,120]
[399877602,1766799013201,500.0,0.00030136,120]
[399877603,1766799013460,500.0,0.00030136,120]
[399877605,1766799013707,500.0,0.00030136,120]
[399877606,1766799013942,305.6497262,0.00030136,120]
[399877607,1766799013982,503.58160759,0.00030136,120]
[399877608,1766799014019,278.57104998,0.00030136,120]
[399877609,1766799021050,301.9137863,0.00030136,120]
[399877610,1766799021769,165.68900322,0.00030136,120]
[399877611,1766799023627,-264.72632509,0.00012032,2]
[399877612,1766799025039,487.4912636,0.00030136,120]
[399877613,1766799026534,348.18879175,0.00030136,120]
[399877614,1766799026763,-157.07000795,0.00012032,2]
[399877615,1766799027548,500.0,0.00030136,120]
[399877616,1766799027806,246.53845721,0.00030136,120]
[399877617,1766799029590,500.0,0.00030136,120]
[399877618,1766799029830,500.0,0.00030136,120]
[399877619,1766799030049,500.0,0.00030136,120]
[399877620,1766799030284,500.0,0.00030136,120]
[399877621,1766799030517,500.0,0.00030136,120]
[399877622,1766799030755,500.0,0.00030136,120]
[399877623,1766799030970,500.0,0.00030136,120]
[399877624,1766799031201,389.38912862,0.00030136,120]
[399877631,1766799031612,-60.45430899,0.00012032,2]
[399877632,1766799031624,-300.0,0.00012129,2]
[399877633,1766799031635,-848.0924453,0.00012129,2]
[399877634,1766799031647,-351.9075547,0.00012129,2]
[399877635,1766799031658,-300.0,0.00012129,2]
[399877636,1766799031668,-76.43031636,0.00012129,2]
[399877637,1766799031680,-73.56968364,0.00012129,2]
[399877638,1766799031691,-230.67382634,0.00012129,2]
[399877639,1766799031702,-18.32617366,0.00012129,2]
[399877640,1766799031713,-500.0,0.0001213,2]
[399877641,1766799031723,-2708.03800621,0.0001213,2]
[399877642,1766799031746,-500.0,0.0001213,2]
[399877643,1766799031759,-500.0,0.0001213,2]
[399877644,1766799031770,-287.02342697,0.0001213,2]
[399877645,1766799031781,-639.61542359,0.0001213,2]
[399877646,1766799031792,-198.97125691,0.0001213,2]
[399877647,1766799031802,-343.65726884,0.0001213,2]
[399877648,1766799031819,-500.0,0.0001213,2]
[399877649,1766799031829,-500.0,0.0001213,2]
[399877651,1766799031841,-500.0,0.0001213,2]
[399877652,1766799031862,-500.24537811,0.0001213,2]
[399877654,1766799031873,-500.0,0.0001213,2]
[399877656,1766799031883,-500.0,0.0001213,2]
[399877658,1766799031893,-500.0,0.0001213,2]
[399877660,1766799031903,-500.0,0.0001213,2]
[399877661,1766799031916,-500.0,0.0001213,2]
[399877663,1766799031926,-500.0,0.0001213,2]
[399877665,1766799031936,-500.0,0.0001213,2]
[399877667,1766799031947,-500.0,0.0001213,2]
[399877669,1766799031958,-523.46706858,0.0001213,2]
[399877671,1766799031967,-500.0,0.0001213,2]
[399877674,1766799031977,-500.0,0.0001213,2]
[399877677,1766799031989,-500.0,0.0001213,2]
[399877679,1766799031999,-192.49657936,0.0001213,2]
[399877681,1766799032009,-500.0,0.0001213,2]
[399877683,1766799032020,-500.0,0.0001213,2]
[399877685,1766799032030,-500.0,0.0001213,2]
[399877687,1766799032040,-440.21415269,0.0001213,2]
[399877688,1766799032050,-500.0,0.0001213,2]
[399877690,1766799032060,-500.0,0.0001213,2]
[399877692,1766799032071,-576.45817314,0.0001213,2]
[399877694,1766799032084,-500.0,0.0001213,2]
[399877696,1766799032094,-500.0,0.0001213,2]
[399877698,1766799032104,-500.0,0.0001213,2]
[399877700,1766799032113,-500.0,0.0001213,2]
[399877702,1766799032124,-500.0,0.0001213,2]
[399877703,1766799032134,-500.0,0.0001213,2]
[399877705,1766799032144,-500.0,0.0001213,2]
[399877707,1766799032154,-500.0,0.0001213,2]
[399877708,1766799032164,-500.0,0.0001213,2]
[399877709,1766799032174,-500.0,0.0001213,2]
[399877711,1766799032184,-500.0,0.0001213,2]
[399877712,1766799032195,-500.0,0.0001213,2]
[399877714,1766799032205,-500.0,0.0001213,2]
[399877716,1766799032215,-500.0,0.0001213,2]
[399877717,1766799032225,-500.0,0.0001213,2]
[399877718,1766799032236,-500.0,0.0001213,2]
[399877719,1766799032521,-560.04479614,0.0001213,2]
[399877720,1766799032532,-500.0,0.0001213,2]
[399877721,1766799032543,-500.0,0.0001213,2]
[399877722,1766799032553,-500.0,0.0001213,2]
[399877723,1766799032563,-500.0,0.0001213,2]
[399877724,1766799032573,-500.0,0.0001213,2]
[399877725,1766799032583,-500.0,0.0001213,2]
[399877726,1766799032594,-500.0,0.0001213,2]
[399877727,1766799032603,-500.0,0.0001213,2]
[399877728,1766799032613,-500.0,0.0001213,2]
[399877729,1766799032624,-500.0,0.0001213,2]
[399877730,1766799032633,-500.0,0.0001213,2]
[399877731,1766799032643,-500.0,0.0001213,2]
[399877732,1766799032652,-500.0,0.0001213,2]
[399877733,1766799032662,-500.0,0.0001213,2]
[399877734,1766799032672,-500.0,0.0001213,2]
[399877735,1766799032682,-500.0,0.0001213,2]
[399877736,1766799032692,-500.0,0.0001213,2]
[399877737,1766799032701,-500.0,0.0001213,2]
[399877738,1766799032711,-500.0,0.0001213,2]
[399877739,1766799032723,-500.0,0.0001213,2]
[399877740,1766799032733,-500.00000001,0.0001213,2]
[399877741,1766799032743,-1200.0,0.0001213,2]
[399877742,1766799032753,-250.0,0.0001213,2]
[399877743,1766799032763,-241037.81917724,0.00012131,2]
[399877744,1766799032777,-2515.23407281,0.00012131,2]
[399877745,1766799032793,-264.59999972,0.00012131,2]
[399877746,1766799032804,-1585.10498767,0.00012131,2]
[399877747,1766799032815,-373.29972738,0.00012131,2]
[399877748,1766799032827,-3002.40558964,0.00012131,2]
[399877749,1766799032861,255.00261807,0.00030136,120]
[399877750,1766799033553,367.46917878,0.00030136,120]
[399877751,1766799036735,500.0,0.00030136,120]
[399877752,1766799036962,500.0,0.00030136,120]
[399877753,1766799037192,403.28879334,0.00030136,120]
[399877760,1766799037593,-2047.57159741,0.00012131,2]
[399877761,1766799037684,-1103.16022683,0.00012131,2]
[399877762,1766799037696,-1253.02955847,0.00012131,2]
[399877763,1766799037707,-3636.82058928,0.00012131,2]
[399877764,1766799037719,-1238.95791096,0.00012131,2]
[399877765,1766799037800,-1827.41417981,0.00012131,2]
[399877766,1766799037811,-10516.64293417,0.00012131,2]
[399877767,1766799037824,-386.1649995,0.00012131,2]
[399877768,1766799037836,-791.20191441,0.00012131,2]
[399877769,1766799037847,-3257.28895896,0.00012131,2]
[399877770,1766799037858,-823.72076623,0.00012131,2]
[399877771,1766799037910,-4220.93159876,0.00012131,2]
[399877824,1766799039314,163.49943402,0.00030136,120]
[399877830,1766799039741,-1729.9999,0.00012131,2]
[399877831,1766799039753,-355.967079,0.00012131,2]
[399877832,1766799039764,-395.92311807,0.00012131,2]
[399877833,1766799039776,-365.60756904,0.00012131,2]
[399877834,1766799039851,-1774.97084956,0.00012131,2]
[399877835,1766799039863,-3978.2732805,0.00012131,2]
[399877836,1766799039874,-363.91698008,0.00012131,2]
[399877837,1766799039885,-292.42750914,0.00012131,2]
[399877838,1766799039961,-1259.68925141,0.00012131,2]
[399877839,1766799039973,-467.805,0.00012131,2]
[399877840,1766799039984,-709134.05067395,0.00012131,2]
[399877841,1766799039994,-226.45427209,0.00012132,2]
[399877842,1766799040004,-4841.6522,0.00012132,2]
[399877843,1766799040013,-1629.6481,0.00012132,2]
[399877844,1766799040024,-8979.6957974,0.00012205,2]
[399877845,1766799040034,-330.14,0.00012231,2]
[399877846,1766799040043,-2269.14457349,0.00012305,2]
[399877847,1766799040053,-587.77940569,0.00012305,2]
[399877848,1766799040062,-500.0,0.00012404,2]
[399877849,1766799040072,-330.14,0.00012505,2]
[399877850,1766799040082,-500.0,0.00012678,2]
[399877851,1766799040092,-8979.69579734,0.00012727,2]
[399877852,1766799040102,-330.14,0.00012779,2]
[399877853,1766799040112,-2269.14457347,0.00012816,2]
[399877854,1766799040122,-594.89493419,0.00012952,2]
[399877855,1766799040132,-302.51848154,0.00012968,2]
[399877856,1766799040142,-330.14,0.00013053,2]
[399877857,1766799040151,-255.0,0.00013208,2]
[399877858,1766799040161,-8979.69579734,0.00013248,2]
[399877859,1766799040171,-420.0,0.00013313,2]
[399877860,1766799040181,-420.0,0.00013313,2]
[399877861,1766799040191,-1680.0,0.00013314,2]
[399877862,1766799040201,-2269.14457347,0.00013326,2]
[399877863,1766799040211,-330.16,0.00013327,2]
[399877864,1766799040221,-300.0,0.00013342,2]
[399877865,1766799040230,-1680.0,0.00013342,2]
[399877866,1766799040240,-300.0,0.00013343,2]
[399877867,1766799040250,-250.0,0.00013343,2]
[399877868,1766799040259,-300.0,0.00013343,2]
[399877869,1766799040269,-250.0,0.00013343,2]
[399877870,1766799040279,-500.0,0.00013698,2]
[399877871,1766799040290,-500.0,0.00013698,2]
[399877872,1766799040300,-500.0,0.00013698,2]
[399877873,1766799040309,-500.0,0.00013699,2]
[399877874,1766799040319,-371.64082973,0.00013699,2]
[399877875,1766799040328,-8979.69579734,0.0001377,2]
[399877876,1766799040338,-169.42,0.00013812,2]
[399877877,1766799040348,-2269.14457347,0.00013837,2]
[399877878,1766799040357,-482.25064201,0.00013973,2]
[399877879,1766799040366,-196.91433714,0.00014217,2]
[399877880,1766799040376,-8979.69579734,0.00014292,2]
[399877881,1766799040386,-2269.14457347,0.00014347,2]
[399877882,1766799040396,-1475.4671258,0.0001437,2]
[399877883,1766799040405,-500.0,0.00014373,2]
[399877884,1766799040415,-500.0,0.00014373,2]
[399877885,1766799040425,-339.47657605,0.00014373,2]
[399877886,1766799040434,-276.52041223,0.00014373,2]
[399877887,1766799040444,-500.0,0.00014373,2]
[399877888,1766799040453,-433.0,0.00014385,2]
[399877889,1766799040463,-587.77940564,0.00014388,2]
[399877890,1766799040472,-152.0,0.00014458,2]
[399877891,1766799040482,-1256.0,0.00014458,2]
[399877892,1766799040492,-462.0,0.00014613,2]
[399877893,1766799040501,-587.0,0.00014613,2]
[399877894,1766799040511,-160.0,0.00014614,2]
[399877895,1766799040520,-200.0,0.00014668,2]
[399877896,1766799040530,-2351.0,0.00014676,2]
[399877897,1766799040539,-8979.69579734,0.00014813,2]
[399877898,1766799040550,-211.25982715,0.00014852,2]
[399877899,1766799040559,-2269.14457347,0.00014858,2]
[399877900,1766799040568,-196.91433714,0.00014888,2]
[399877901,1766799040578,-1000.0,0.00014921,2]
[399877902,1766799040588,-502.55443721,0.00014921,2]
[399877903,1766799040597,-500.0,0.00014921,2]
[399877904,1766799040606,-1000.0,0.0001497,2]
[399877905,1766799040616,-5014.92,0.00014999,2]
[399877906,1766799040625,-2041.96320855,0.00015,2]
[399877907,1766799040634,-7949.15298841,0.00015,2]
[399877908,1766799040644,-21370.00222654,0.00015,2]
[399877909,1766799040654,-1155.4547331,0.00015,2]
[399877910,1766799040663,-33603.71108173,0.00015,2]
[399877911,1766799040672,-476.7,0.00015068,2]
[399877912,1766799040681,-150.0,0.00015288,2]
[399877913,1766799040690,-230.12358953,0.00015288,2]
[399877914,1766799040700,-150.0,0.00015288,2]
[399877915,1766799040710,-150.0,0.00015288,2]
[399877916,1766799040722,-150.00000001,0.00015288,2]
[399877917,1766799040731,-150.00000001,0.00015288,2]
[399877918,1766799040740,-150.00000001,0.00015288,2]
[399877919,1766799040751,-1517.64,0.000153,2]
[399877920,1766799040760,-347.05,0.0001531,2]
[399877921,1766799040769,-9999.99,0.0001531,2]
[399877922,1766799040779,-9999.99,0.0001531,2]
[399877923,1766799040788,-150.99,0.0001531,2]
[399877924,1766799040798,-299.99,0.0001531,2]
[399877925,1766799040807,-9999.99,0.0001531,2]
[399877926,1766799040817,-14850.43,0.0001531,2]
[399877927,1766799040826,-294.76,0.0001531,2]
[399877928,1766799040835,-12287.56,0.0001531,2]
[399877929,1766799040845,-5278.37,0.0001531,2]
[399877930,1766799040855,-8979.69579734,0.00015335,2]
[399877931,1766799040865,-2269.14457347,0.00015368,2]